Cogmind - Beta 15 @@@ ROGUE MODE // 2025.08.09 @ 14:54:16 Player: ClassActJerk Result: Destroyed by L-31 Rogue with Katana Performance ------------- Evolutions (2) 1000 Regions Visited (4) 800 Robots Destroyed (39) 195 Value Destroyed (1407) 1407 Prototype IDs (3) 60 Alien Tech Used (0) 0 Bonus (184) 184 TOTAL SCORE: 3646 Bonus ------- Follower Combat Kills 184 Cogmind --------- Core Integrity 0/550 Matter 299/300 Energy 160/160 System Corruption 0% Temperature Danger (439) Movement Core (150) Ox2 Location -8/Materials Parts ------- > --- POWER (2) -------- Light Nuclear Core > --- PROPULSION (2) --- (None) > --- UTILITY (4) ------ Improved Sensor Array > --- WEAPON (3) ------- Light Assault Rifle > --- INVENTORY (5) ---- (None) Peak State ------------ > --- POWER ------------ Light Nuclear Core Light Nuclear Core > --- PROPULSION ------- Wheel Wheel > --- UTILITY ---------- Improved Heat Sink Improved Sensor Array Heavy Armor Plating > --- WEAPON ----------- Particle Gun Light Assault Rifle > --- INVENTORY -------- (None) [Rating: 23] Favorites ----------- Power Reinforced Ion Engine Engine Reinforced Ion Engine Power Core Light Nuclear Core Propulsion Aluminum Leg Treads Improved Treads Leg Aluminum Leg Wheel Wheel Utility Small Storage Unit Device Structural Scanner Storage Small Storage Unit Processor Improved Signal Interpreter Protection Hardened Medium Armor Plating Weapon Small Laser Energy Gun Small Laser Ballistic Gun Assault Rifle Ballistic Cannon Improved Light Cannon Build | -11 -10 -9 -9 -8 ------- Run | Yrd Mat Mat Min Mat Slots Evolved 4 | . . 2 . 2 Power 1 | . . 1 . . Propulsion . | . . . . . Utility 2 | . . . . 2 Weapon 1 | . . 1 . . Parts Attached 56 | 5 8 22 2 19 Power 10 | 1 . 5 1 3 Engine 7 | 1 . 5 1 . Core 3 | . . . . 3 Reactor . | . . . . . Propulsion 13 | 3 1 6 1 2 Treads 2 | . . 1 1 . Leg 8 | 2 1 5 . . Wheel 3 | 1 . . . 2 Hover . | . . . . . Flight . | . . . . . Utility 16 | . 5 3 . 8 Device 6 | . 2 . . 4 Storage 2 | . 2 . . . Processor 2 | . . 1 . 1 Hackware . | . . . . . Protection 6 | . 1 2 . 3 Artifact . | . . . . . Weapon 17 | 1 2 8 . 6 Energy Gun 10 | . 2 4 . 4 Energy Cannon . | . . . . . Ballistic Gun 6 | 1 . 3 . 2 Ballistic Cannon 1 | . . 1 . . Launcher . | . . . . . Special Weapon . | . . . . . Impact Weapon . | . . . . . Slashing Weapon . | . . . . . Piercing Weapon . | . . . . . Special Melee Weapon . | . . . . . Unidentified Prototypes 1 | . . 1 . . Parts Lost 20 | . . 1 . 19 Power 4 | . . 1 . 3 Propulsion 4 | . . . . 4 Utility 7 | . . . . 7 Weapon 5 | . . . . 5 Highest Loss Streak 13 | . . 1 . 13 To Critical Strikes . | . . . . . Average Backups 4 | 4 6 6 4 2 Power . | . 1 . . . Propulsion . | . 1 . . . Utility 2 | . 2 2 3 1 Weapon 1 | 1 1 1 1 1 Tool/Special . | . . . . . Unused Backups 5 | . 1 3 . 1 Power 1 | . . 1 . . Propulsion 2 | . 1 . . 1 Utility 1 | . . 1 . . Weapon 1 | . . 1 . . Tool/Special . | . . . . . Average Slot Usage (%) 91 | . 93 92 97 85 Engine 16 | . 14 22 22 7 Core 2 | . . . . 8 Treads 9 | . . 2 19 10 Leg 8 | . 28 17 . . Wheel 2 | . . . . 6 Device 4 | . 8 . . 11 Storage 7 | . 11 11 11 1 Protection 11 | . 3 9 11 16 Energy Gun 12 | . 17 16 11 8 Ballistic Gun 9 | . 8 10 11 8 Ballistic Cannon 5 | . . 1 11 5 Peak Build Rating 23 | 4 7 15 14 23 Average Rating 13 | 2 6 11 13 17 On Entrance 7 | . 4 7 14 14 Naked Turns . | . . . . . Heaviest Build 37 | 7 14 37 37 37 Greatest Support 43 | 20 20 23 43 43 Greatest Overweight (x) 6 | . . 6 1 4 Average Overweight (x) . | . . . . . Largest Inventory Capacity 8 | 5 8 8 8 8 Average Capacity 6 | 5 6 8 8 5 Most Carried 8 | 5 8 8 6 5 Average Carried 4 | 4 6 6 4 2 Final Capacity 8 | 5 8 8 8 5 Final Carried 8 | 5 8 3 5 . Class Distribution -------------------- 42% | Scavenger-Tank 21% | Tank 17% | Mutant 15% | Scavenger-Mutant Dominant Class ---------------- Mutant | -10/Materials Scavenger-Tank | -9/Materials Scavenger-Tank | -9/Mines Scavenger-Mutant | -8/Materials Resources | -11 -10 -9 -9 -8 ----------- Run | Yrd Mat Mat Min Mat Matter Collected 1495 | 236 116 567 171 405 Remotely . | . . . . . Salvage Created 1532 | . 160 833 45 494 Parts 69 | . 7 39 5 18 Haulers Intercepted . | . . . . . Recyclers Shooed 1 | . . 1 . . Parts Field Recycled . | . . . . . Retrieved Matter . | . . . . . Parts Self-Destructed . | . . . . . Prevented . | . . . . . Kills | -11 -10 -9 -9 -8 ------- Run | Yrd Mat Mat Min Mat Combat Hostiles Destroyed 36 | . 4 19 3 10 Guns 29 | . 4 18 1 6 Cannons 6 | . . 1 2 3 Classes Destroyed 7 | . 1 4 1 1 Worker 1 | . . 1 . . Watcher 2 | . . . . 2 Swarmer 3 | . . . 3 . Grunt 27 | . 4 14 . 9 Brawler 1 | . . 1 . . Duelist 2 | . . 2 . . Sentry 3 | . . 2 . 1 Best Kill Streak 5 | . 3 5 3 3 Combat Bots Only 5 | . 3 5 3 3 Max Kills in Single Turn 1 | . 1 1 1 1 Gunslinging . | . . . . . Exploded . | . . . . . Melee . | . . . . . Uniques/NPCs Destroyed . | . . . . . Combat | -11 -10 -9 -9 -8 -------- Run | Yrd Mat Mat Min Mat Hostile Shots Fired 299 | . 12 114 12 161 Missed 65 | . 2 30 5 28 Hits 234 | . 10 84 7 133 Melee 14 | . . 5 . 9 Projectile 220 | . 10 79 7 124 Critical Strikes 13 | . . . . 13 Actively Blocked 1 | . . . . 1 Damage Taken 3644 | . 111 1122 58 2353 Core 820 | . 23 217 10 570 Absorbed by Shields 73 | . . . . 73 Redirected to Shielding 83 | . . 32 . 51 Regen/Repaired (Parts) 110 | . . 110 . . Core Remaining (%) 77 | 100 90 . 43 . Volleys Fired 131 | . 8 60 4 59 Largest 3 | . 2 3 3 3 Hottest 113 | . 60 113 93 109 Shots Fired 269 | . 16 136 12 105 Gun 241 | . 16 129 8 88 Cannon 28 | . . 7 4 17 Launcher . | . . . . . Special . | . . . . . Kinetic 142 | . 8 60 8 66 Thermal 127 | . 8 76 4 39 Explosive . | . . . . . Electromagnetic . | . . . . . Robot Hit Streak 19 | . 5 11 2 19 Robot Miss Streak 5 | . 2 4 5 4 Penetration Max . | . . . . . Secondary Targets 2 | . . 2 . . Max Gunslinging Chain 1 | . . 1 . . Shots Hit Robots 163 | . 10 80 3 70 Core Hits 81 | . 8 41 3 29 Critical Kills . | . . . . . Critical Parts Destroyed . | . . . . . Critical Strikes 2 | . . 1 . 1 Burn 1 | . . . . 1 Blast 1 | . . 1 . . Melee Attacks . | . . . . . Impact . | . . . . . Slashing . | . . . . . Piercing . | . . . . . Sneak Attacks . | . . . . . Combat Hostiles . | . . . . . Follow-up Attacks . | . . . . . Damage Inflicted 2257 | . 112 1059 62 1024 Guns 1917 | . 112 999 22 784 Cannons 338 | . . 60 40 238 Explosions . | . . . . . Melee . | . . . . . Ramming 2 | . . . . 2 Kinetic 1144 | . 55 474 40 575 Thermal 1111 | . 57 585 22 447 Explosive . | . . . . . Electromagnetic . | . . . . . Impact . | . . . . . Slashing . | . . . . . Piercing . | . . . . . Highest Corruption 2 | . . 2 2 . Average Corruption 2 | . . 2 2 . Corruption Purged . | . . . . . Corruption Blocked . | . . . . . Effects 18 | . . 3 15 . Message Errors 4 | . . . 4 . Matter Fused 9 | . . 2 7 . Energy Discharges 3 | . . . 3 . Data Loss (minor) 2 | . . 1 1 . Overload Shots . | . . . . . Overflow Damage . | . . . . . Projectiles . | . . . . . Explosions . | . . . . . Melee . | . . . . . Knockbacks 7 | . . . . 7 Impact . | . . . . . Kinetic 5 | . . . . 5 Secondary 2 | . . . . 2 Self-Inflicted Damage . | . . . . . Shots . | . . . . . Rammed 1 | . . . . 1 Targets Rammed 1 | . . . . 1 Kicked . | . . . . . Crushed . | . . . . . Highest Temperature 659 | . 24 581 268 659 Average Temperature 229 | . 15 228 138 272 Received Heat Transfer 1750 | . 60 468 . 1222 Effects 78 | . . 31 . 47 Shutdowns 25 | . . 12 . 13 Energy Bleed 7 | . . 3 . 4 Interference 13 | . . 5 . 8 Matter Decay 5 | . . 3 . 2 Short Circuit 3 | . . 1 . 2 Damage (minor) 10 | . . 2 . 8 Damage (major) 12 | . . 4 . 8 Damage (core) 3 | . . 1 . 2 Siege Activations . | . . . . . Martial Activations . | . . . . . Shielding Activations . | . . . . . Robots Disrupted . | . . . . . Combat Hostiles . | . . . . . Robots Corrupted . | . . . . . Combat Hostiles . | . . . . . Parts Fried . | . . . . . Impact Corruptions . | . . . . . Robots Melted 1 | . . . . 1 Combat Hostiles 1 | . . . . 1 Parts Melted 2 | . . 1 . 1 Heat Transferred 2673 | . 125 1350 50 1148 Parts Sabotaged . | . . . . . Parts Stolen . | . . . . . Parts Stripped . | . . . . . Power Chain Reactions . | . . . . . Alert | -11 -10 -9 -9 -8 ------- Run | Yrd Mat Mat Min Mat Maximum Alert Level . | . . . . . Low Security (%) 100 | 100 100 100 100 100 Level 1 . | . . . . . Level 2 . | . . . . . Level 3 . | . . . . . Level 4 . | . . . . . Level 5 . | . . . . . High Security . | . . . . . Max Security . | . . . . . Peak Influence 121 | . 85 121 96 83 Initial 30 | . . 10 30 . Average 27 | . 33 45 20 15 Influence Increases 1172 | . 130 487 126 429 Destroy 0b10 Robot/C 840 | . 80 380 100 280 Destroy 0b10 Robot/NC 15 | . . 5 . 10 Destroy Leader 164 | . 20 70 20 54 Allied During Kill 16 | . . . 6 10 Successful Hack 29 | . . 29 . . Disable Machine 15 | . . . . 15 Destroy Structure 3 | . . 3 . . Lose Combat Pursuer 90 | . 30 . . 60 Influence Decreases 1148 | . 105 433 205 405 Entered New Map 64 | . . 15 49 . Time Decay 815 | . 105 303 156 251 Lost Part 144 | . . 10 . 134 Lost Ally 20 | . . . . 20 Purge Threat 105 | . . 105 . . Squads Dispatched 7 | . 2 1 . 4 Investigation 4 | . 1 1 . 2 Extermination . | . . . . . Reinforcement 3 | . 1 . . 2 Assault . | . . . . . Garrison . | . . . . . Intercept . | . . . . . Searches Triggered . | . . . . . Construction Impeded . | . . . . . Haulers Reinforced . | . . . . . Active Scanning Responses . | . . . . . Cargo Convoy Interrupts . | . . . . . Stealth | -11 -10 -9 -9 -8 --------- Run | Yrd Mat Mat Min Mat Distress Signals 6 | . 3 1 . 2 Communications Jammed . | . . . . . Distress Signals . | . . . . . Times Spotted 72 | . 11 26 5 30 Peak Tracking Total 10 | . 3 5 3 10 Tactical Retreats 5 | . 2 . . 3 Traps | -11 -10 -9 -9 -8 ------- Run | Yrd Mat Mat Min Mat Traps Triggered 2 | . 1 . . 1 Indirectly . | . . . . . Trap Hack Attempts . | . . . . . Triggered . | . . . . . Disarmed . | . . . . . Reprogrammed . | . . . . . Reused . | . . . . . Traps Extracted . | . . . . . Installed . | . . . . . Triggered . | . . . . . Machines | -11 -10 -9 -9 -8 ---------- Run | Yrd Mat Mat Min Mat Machines Disabled 1 | . . . . 1 Max in Single Turn . | . . . . . Machines Repaired . | . . . . . Machines Dismantled . | . . . . . Machines Sabotaged . | . . . . . Overloaded Fab Kills . | . . . . . Hacking | -11 -10 -9 -9 -8 --------- Run | Yrd Mat Mat Min Mat Machines Accessed 6 | . . 5 . 1 Terminals 3 | . . 2 . 1 Fabricators . | . . . . . Repair Stations 2 | . . 2 . . Recycling Units . | . . . . . Scanalyzers 1 | . . 1 . . Garrison Access . | . . . . . Total Hacks 19 | . . 16 . 3 Successful 11 | . . 10 . 1 Failed 8 | . . 6 . 2 Catastrophic . | . . . . . Database Lockouts . | . . . . . Manual . | . . . . . Terminals 10 | . . 7 . 3 Fabricators . | . . . . . Repair Stations 7 | . . 7 . . Recycling Units . | . . . . . Scanalyzers 2 | . . 2 . . Garrison Access . | . . . . . Terminal Hacks 4 | . . 3 . 1 Record 1 | . . . . 1 Prototype ID Bank 1 | . . 1 . . Unreport Threat 1 | . . 1 . . Zone Layout 1 | . . 1 . . Fabricator Hacks . | . . . . . Repair Station Hacks 6 | . . 6 . . Scan Component 3 | . . 3 . . Repair 2 | . . 2 . . Refit 1 | . . 1 . . Recycling Unit Hacks . | . . . . . Scanalyzer 1 | . . 1 . . Insert Component 1 | . . 1 . . Garrison Access Hacks . | . . . . . Unauthorized Hacks . | . . . . . Terminals . | . . . . . Fabricators . | . . . . . Repair Stations . | . . . . . Recycling Units . | . . . . . Scanalyzers . | . . . . . Garrison Access . | . . . . . Data Cores Recovered . | . . . . . Used . | . . . . . Hacking Detections 4 | . . 3 . 1 Full Trace Events 3 | . . 2 . 1 Feedback Events . | . . . . . Feedback Blocked . | . . . . . Robot Schematics Acquired . | . . . . . Robots Built . | . . . . . Authchips . | . . . . . Time . | . . . . . Total Robot Build Rating . | . . . . . Part Schematics Acquired . | . . . . . Parts Built . | . . . . . Authchips . | . . . . . Time . | . . . . . Total Part Build Rating . | . . . . . Parts Repaired 2 | . . 2 . . Time 39 | . . 39 . . Parts Recycled . | . . . . . Recycled Matter . | . . . . . Retrieved Matter . | . . . . . Retrieved Components . | . . . . . Parts Scanalyzed . | . . . . . Part Schematics Acquired . | . . . . . Parts Damaged . | . . . . . Bothacking | -11 -10 -9 -9 -8 ------------ Run | Yrd Mat Mat Min Mat Used RIF Installer . | . . . . . Robots Hacked . | . . . . . Non-combat . | . . . . . Combat . | . . . . . Robot Hacks Applied . | . . . . . Relay Couplers Released . | . . . . . Fabnet Peak Effective % . | . . . . . Robots Rewired . | . . . . . Allies Hacked . | . . . . . Hacks Repelled . | . . . . . Allies | -11 -10 -9 -9 -8 -------- Run | Yrd Mat Mat Min Mat Total Allies 2 | . . . 2 . Largest Group 2 | . . . 2 2 Highest-Rated Group 54 | . . . 54 54 Highest-Rated Ally 31 | . . . 31 31 Total Orders . | . . . . . Ally Attacks 28 | . . . 4 24 Total Damage 748 | . . . 86 662 Kills 7 | . . . 2 5 Allies Corrupted . | . . . . . Allies Melted . | . . . . . Intel | -11 -10 -9 -9 -8 ------- Run | Yrd Mat Mat Min Mat Active Infowar (turns) 1068 | . 177 13 . 878 Sensors 369 | . 2 . . 367 Structural 699 | . 175 13 . 511 Robot Analysis Total . | . . . . . Derelict Logs Recovered . | . . . . . Drone Launches . | . . . . . Drone Recoveries . | . . . . . Exploration | -11 -10 -9 -9 -8 ------------- Run | Yrd Mat Mat Min Mat Turns Passed 3394 | 72 297 1064 800 1161 Spaces Moved 1632 | 59 204 456 231 682 Core 31 | 15 . 1 . 15 Treads 573 | . . 65 231 277 Legs 637 | 43 204 390 . . Wheels 391 | 1 . . . 390 Hover . | . . . . . Flight . | . . . . . Fastest Speed 50 | 50 120 120 160 50 Average Speed 140 | 101 120 173 180 115 Slowest Speed 350 | 120 120 350 240 250 Overloaded Moves . | . . . . . Propulsion Burnouts . | . . . . . Robots Hopped . | . . . . . Potential Cave-ins . | . . . . . Cave-ins Triggered . | . . . . . Exploration Rate (%) 27 | 4 28 28 50 26 Regions Visited 4 Branch Regions 1 Pre-discovered Areas . | . . . . . Known Exits Taken . | . . . . . Unknown Exits Taken 4 | 1 1 1 1 . Scrap Searched 2 | . . . 2 . Spaces Dug . | . . . . . Terrain Destroyed 1 | . . 1 . . Melee . | . . . . . Projectile 1 | . . 1 . . AOE . | . . . . . Terrain Rammed . | . . . . . Walls Destroyed . | . . . . . Machines Disabled . | . . . . . Actions | -11 -10 -9 -9 -8 --------- Run | Yrd Mat Mat Min Mat Total 2512 | 69 240 630 606 967 Wait 580 | . 7 37 365 171 Move 1628 | 58 203 455 230 682 Hop . | . . . . . Pick Up 54 | 5 8 19 4 18 Fast Attach 9 | 5 1 2 . 1 Attach 43 | . 4 20 2 17 Detach 4 | . 1 3 . . Swap 21 | . 4 9 . 8 Drop 41 | 1 4 25 1 10 Fire 131 | . 8 60 4 59 Melee . | . . . . . Ram . | . . . . . Kick . | . . . . . Crush 1 | . . . . 1 Escape Stasis . | . . . . . Rewire . | . . . . . Trap . | . . . . . Miscellaneous . | . . . . . Route ------- -11/Scrapyard -10/Materials -9/Materials -9/Mines -8/Materials History --------- Turn | Location | Event 15 | -11/Scrapyard | Discovered new exit (range 15) 73 | -11/Scrapyard | Entered Materials 319 | -10/Materials | Build established: Mutant 355 | -10/Materials | Discovered new exit (range 10) 370 | -10/Materials | Entered another Materials area 370 | -9/Materials | Evolved 2 slots: Power x1, Weapon x1 542 | -9/Materials | Repaired Assault Rifle 923 | -9/Materials | Repaired Weapon Shielding 952 | -9/Materials | Build established: Scavenger-Tank 1278 | -9/Materials | Core integrity fell below 50% 1312 | -9/Materials | Discovered new exit (range 15) 1434 | -9/Materials | Entered Mines 2226 | -9/Mines | Discovered new exit (range 5) 2234 | -9/Mines | Entered Materials 2234 | -8/Materials | Accompanied by 2 allies 2234 | -8/Materials | Evolved 2 slots: Utility x2 2239 | -8/Materials | Led the pair of lost Derelicts to an unsafe place 2859 | -8/Materials | Build established: Tank 2914 | -8/Materials | Core integrity fell below 50% 2967 | -8/Materials | Lost 13 parts (2p2n5u4w) 3176 | -8/Materials | Build established: Scavenger-Mutant 3367 | -8/Materials | Core integrity fell below 20% 3395 | -8/Materials | Destroyed by L-31 Rogue with Katana Last Messages --------------- 03380_ Power failure, Lgt. Nuclear Core shutdown. 03384_ Overheating: System interference. 03384_ Particle Gun temporarily disabled. 03385_ Overheating: Imp. Sensor Array damaged (-8). 03385_ Lgt. Nuclear Core destroyed. 03387_ Overheating: Hvy. Armor Plating damaged (-12). 03387_ Overheating: Lgt. Assault Rifle damaged (-2). 03387_ Overheating: Imp. Sensor Array damaged (-6). 03387_ Overheating: Wheel damaged (-8). 03388_ Power failure, Lgt. Nuclear Core shutdown. 03388_ Hvy. Armor Plating destroyed. 03389_ K-01 Serf collects debris. 03390_ Wheel destroyed. 03393_ Particle Gun destroyed. Map ----- +----------------------------------------------------+ | ???# ## #???????????????? | | ???# #####+######+####???????????????? | | ???# # #????????????????????????? | | ???# # #????????????????????????? | | ???# # #????????????????????????? | | ???# + #????????????????????????? | | ####+## # #????????????????????????? | | # # # #????????????????????????? | | # = # ######+#????????????????????????? | | # # #??### ###??????????????????????? | | # # #### #??????????????????????? | | # # #########??????????????? | | # + " ? ?????????? | | # # ########???????????????? | | # ###### #??????????????????????? | | # #????## ##??????????????????????? | | # #?????# #???????????????????????? | | # #?????# #???????????????????????? | | # #?????# #???????????????????????? | | #######?????# #???????????????????????? | | ????????????### #?###########???????????? | | ??????????????# #?# #???????????? | | ??????????????#?#?# #???????????? | | ??????????????# #?# !#???????????? | | ??????????????# ### #???????????? | | ??????????????# @gk g a #???????????? | | ??????????????#l### """" #???????????? | | ??????????????#Y#?# """" #???????????? | | ??????????????# #?# """" #???????????? | | ??????????????#?#?#######+###???????????? | | ???????????????? ??????? ?????????????? | | ?????????????? ? ??????? ?????????????? | | ?????????????### ????? T ????????????? | | ???????????????? ????? ????????????? | | ???????????????? "??? +???????????? | | ???????????????? ??? #???????????? | | ???????????????? ? ???????????? | | ???????????????? ##?########???????????? | | ???????????????? #?????????????????????? | | ???????????????? #?????????????????????? | | ????????????????? ?????????????????????? | | ????????????????? ?????????????????????? | | ????????????????? ?????????????????????? | | ????????????????? ??????????????????????? | | ????????????????????????????????????????? | | ????????????????????????????????????????? | | ????????????????????????????????????????? | | ????????????????????????????????????????? | | ????????????????????????????????????????? | | | +----------------------------------------------------+ Best States ------------- Heat Dissipation 59 Energy Generation 23 Energy Capacity 430 Matter Stores 318 Matter Capacity 350 Sight Range 16 Robot Scan Range 15 Terrain Scan Density 10 Armor Coverage 600 Resistance: KI 20 Utility Shielding 33 Weapon Shielding 33 Evasion (%) 55 Targeting Accuracy 6 Recoil Reduction 2 Item Schematics ----------------- None Robot Schematics ------------------ None Fabricated ------------ Nothing Repaired ---------- Assault Rifle | 13% | -9/Materials Weapon Shielding | 54% | -9/Materials Alien Tech Used ----------------- None Achievements -------------- None Challenges ------------ None Game ------ Seed PlasmaMobileRipteeth Manual? 0 Play Time 00:38:35 Cumulative 12.5 hours Start 2025.08.09 @ 14:15:23 End 2025.08.09 @ 14:54:16 Sessions 1 Manual Loads 0 Difficulty Rogue Special Mode None Game No. 36 Rogue 36 Adventurer 0 Explorer 0 Win Type - Total 0 Types 0/0/0/0/0/0/0/0/0/0 Lore% 4 Gallery% 14 Achievement% 14 Wizard Run 0 Options --------- Layout 1 ASCII 0 Keyboard 0 Movement Mouse Keybinds 0 Fullscreen 1 Font 24/Smallcaps Map View 50x35 Zoom Use 1% Tactical HUD 1 Map Filters NONE Filters NONE Steam 1 RUN: c36b27af-8bee-4607-8a4d-27c5ce1c86e7